[Event "*** SCC Grand Prix: Titled Tuesday Blitz"]
[Site "Chess.com"]
[Date "2020.07.07"]
[Round "3"]
[White "pfalcon1949"]
[Black "Cxrjs"]
[Result "0-1"]
[WhiteElo "1936"]
[BlackElo "2266"]
[TimeControl "180+1"]
[EndTime "10:29:36 PDT"]
[Termination "Cxrjs won by checkmate"]

1. d4 {[%clk 0:03:00.9]} 1... Nf6 {[%clk 0:02:58.4]} 2. c4 {[%clk 0:03:00.7]}
2... g6 {[%clk 0:02:58.7]} 3. Nc3 {[%clk 0:03:00.7]} 3... Bg7 {[%clk 0:02:59.1]}
4. e4 {[%clk 0:02:59.7]} 4... d6 {[%clk 0:02:59.2]} 5. Nge2 {[%clk 0:02:59.7]}
5... O-O {[%clk 0:02:59.2]} 6. Ng3 {[%clk 0:02:59.8]} 6... Nc6 {[%clk
0:02:55.3]} 7. Be2 {[%clk 0:02:59.8]} 7... e5 {[%clk 0:02:54.8]} 8. d5 {[%clk
0:03:00]} 8... Nd4 {[%clk 0:02:55.1]} 9. h4 {[%clk 0:03:00]} 9... h5 {[%clk
0:02:52.3]} 10. Bg5 {[%clk 0:02:58.8]} 10... Qe8 {[%clk 0:02:47.4]} 11. Qd2
{[%clk 0:02:50.1]} 11... a6 {[%clk 0:02:40.9]} 12. Bh6 {[%clk 0:02:45.8]} 12...
b5 {[%clk 0:02:39]} 13. Bxg7 {[%clk 0:02:45.5]} 13... Kxg7 {[%clk 0:02:38.7]}
14. Qg5 {[%clk 0:02:44.1]} 14... Nc2+ {[%clk 0:02:31.8]} 15. Kd2 {[%clk
0:02:34.4]} 15... Nxa1 {[%clk 0:02:30.6]} 16. Bxh5 {[%clk 0:02:34.4]} 16... b4
{[%clk 0:02:13]} 17. Nce2 {[%clk 0:02:16.3]} 17... Qa4 {[%clk 0:01:42.6]} 18.
Rxa1 {[%clk 0:02:02.8]} 18... b3 {[%clk 0:01:41.8]} 19. a3 {[%clk 0:01:45.1]}
19... Qxc4 {[%clk 0:01:37.8]} 20. Rc1 {[%clk 0:01:36.8]} 20... Nxe4+ {[%clk
0:01:32.5]} 21. Nxe4 {[%clk 0:01:36.1]} 21... Qxe4 {[%clk 0:01:33.4]} 22. Bf3
{[%clk 0:01:30.5]} 22... Qf5 {[%clk 0:01:24]} 23. Qe7 {[%clk 0:01:21.1]} 23...
Ra7 {[%clk 0:01:00.6]} 24. h5 {[%clk 0:01:12.9]} 24... gxh5 {[%clk 0:00:37.5]}
25. Ng3 {[%clk 0:00:51.4]} 25... Qf4+ {[%clk 0:00:29.4]} 26. Ke2 {[%clk
0:00:33.4]} 26... Bg4 {[%clk 0:00:27.6]} 27. Rxc7 {[%clk 0:00:22.5]} 27... Rxc7
{[%clk 0:00:20.5]} 28. Qxc7 {[%clk 0:00:23.4]} 28... h4 {[%clk 0:00:13.9]} 29.
Ne4 {[%clk 0:00:17.4]} 29... Qxe4+ {[%clk 0:00:13.6]} 30. Kf1 {[%clk 0:00:17.1]}
30... Bxf3 {[%clk 0:00:09.2]} 31. gxf3 {[%clk 0:00:17]} 31... Qd3+ {[%clk
0:00:08.5]} 32. Kg2 {[%clk 0:00:16.3]} 32... Qxd5 {[%clk 0:00:08.4]} 33. Qc3
{[%clk 0:00:14.6]} 33... h3+ {[%clk 0:00:08.2]} 34. Kxh3 {[%clk 0:00:14.1]}
34... Rh8+ {[%clk 0:00:08.7]} 35. Kg2 {[%clk 0:00:14.5]} 35... Rh6 {[%clk
0:00:08.7]} 36. Qe3 {[%clk 0:00:14.2]} 36... Rg6+ {[%clk 0:00:09.1]} 37. Kf1
{[%clk 0:00:13.4]} 37... Qd1+ {[%clk 0:00:09.4]} 38. Qe1 {[%clk 0:00:13.3]}
38... Rg1+ {[%clk 0:00:10.3]} 39. Kxg1 {[%clk 0:00:12.5]} 39... Qxe1+ {[%clk
0:00:11.2]} 40. Kg2 {[%clk 0:00:13.4]} 40... Qe2 {[%clk 0:00:11.6]} 41. Kg3
{[%clk 0:00:13.8]} 41... Qxb2 {[%clk 0:00:12.5]} 42. a4 {[%clk 0:00:13.8]} 42...
Qa3 {[%clk 0:00:13.4]} 43. a5 {[%clk 0:00:14.7]} 43... Qxa5 {[%clk 0:00:12.4]}
44. Kg4 {[%clk 0:00:15.6]} 44... Qb4+ {[%clk 0:00:12.5]} 45. Kg3 {[%clk
0:00:13.9]} 45... Qf4+ {[%clk 0:00:12.5]} 46. Kg2 {[%clk 0:00:13.8]} 46... b2
{[%clk 0:00:12.9]} 47. Kf1 {[%clk 0:00:13.5]} 47... b1=Q+ {[%clk 0:00:13.2]} 48.
Kg2 {[%clk 0:00:14.4]} 48... Qg6+ {[%clk 0:00:13.3]} 49. Kf1 {[%clk 0:00:14.3]}
49... Qc4+ {[%clk 0:00:13.3]} 50. Ke1 {[%clk 0:00:14]} 50... Qg1+ {[%clk
0:00:13.2]} 51. Kd2 {[%clk 0:00:14.4]} 51... Qxf2+ {[%clk 0:00:13.5]} 52. Kd1
{[%clk 0:00:13.8]} 52... Qfe2# {[%clk 0:00:14.2]} 0-1

[Event "*** SCC Grand Prix: Titled Tuesday Blitz"]
[Site "Chess.com"]
[Date "2020.07.07"]
[Round "3"]
[White "DraG0s3L"]
[Black "Mbneu"]
[Result "1-0"]
[WhiteElo "2507"]
[BlackElo "2255"]
[TimeControl "180+1"]
[EndTime "10:29:37 PDT"]
[Termination "DraG0s3L won by resignation"]

1. d4 {[%clk 0:03:00.9]} 1... Nf6 {[%clk 0:02:58.9]} 2. c4 {[%clk 0:03:00.4]}
2... c5 {[%clk 0:02:59.4]} 3. d5 {[%clk 0:03:00.3]} 3... e6 {[%clk 0:02:59.7]}
4. Nc3 {[%clk 0:02:59.9]} 4... exd5 {[%clk 0:03:00.2]} 5. cxd5 {[%clk
0:03:00.7]} 5... d6 {[%clk 0:03:00.9]} 6. Nf3 {[%clk 0:03:00.7]} 6... g6 {[%clk
0:03:01.3]} 7. Nd2 {[%clk 0:03:01.1]} 7... Nbd7 {[%clk 0:02:57.7]} 8. e4 {[%clk
0:03:00.9]} 8... a6 {[%clk 0:02:55.1]} 9. a4 {[%clk 0:03:00.5]} 9... Bg7 {[%clk
0:02:54.4]} 10. Be2 {[%clk 0:03:00.3]} 10... O-O {[%clk 0:02:54.1]} 11. O-O
{[%clk 0:03:00]} 11... Re8 {[%clk 0:02:49.3]} 12. Qc2 {[%clk 0:02:59.7]} 12...
Ne5 {[%clk 0:02:37.7]} 13. h3 {[%clk 0:02:54.3]} 13... c4 {[%clk 0:02:25.1]} 14.
f4 {[%clk 0:02:50.9]} 14... Nd3 {[%clk 0:02:18.6]} 15. Bxd3 {[%clk 0:02:51.2]}
15... cxd3 {[%clk 0:02:17.8]} 16. Qxd3 {[%clk 0:02:52.1]} 16... Nd7 {[%clk
0:02:17.3]} 17. Kh1 {[%clk 0:02:28]} 17... Qh4 {[%clk 0:02:09]} 18. Nf3 {[%clk
0:02:23.8]} 18... Qg3 {[%clk 0:02:01.5]} 19. Be3 {[%clk 0:02:14.8]} 19... Nc5
{[%clk 0:01:50.4]} 20. Bxc5 {[%clk 0:02:09.9]} 20... Bxh3 {[%clk 0:01:49.2]} 21.
Ne1 {[%clk 0:01:58.7]} 21... Bxg2+ {[%clk 0:01:41.9]} 22. Nxg2 {[%clk
0:01:57.8]} 22... Qxd3 {[%clk 0:01:41.1]} 23. Bxd6 {[%clk 0:01:57.7]} 23... Qh3+
{[%clk 0:01:33.2]} 24. Kg1 {[%clk 0:01:57.1]} 24... Bd4+ {[%clk 0:01:33.6]} 25.
Rf2 {[%clk 0:01:57.5]} 25... Rac8 {[%clk 0:01:13]} 26. Rd1 {[%clk 0:01:52.2]}
26... Bxf2+ {[%clk 0:01:08.7]} 27. Kxf2 {[%clk 0:01:53.1]} 27... Rxc3 {[%clk
0:01:07.3]} 28. bxc3 {[%clk 0:01:53]} 28... Rxe4 {[%clk 0:01:06.9]} 29. Be5
{[%clk 0:01:45.5]} 29... Qh5 {[%clk 0:01:00.4]} 30. Rd2 {[%clk 0:01:42.3]} 30...
g5 {[%clk 0:00:58.8]} 31. d6 {[%clk 0:01:40.6]} 31... gxf4 {[%clk 0:00:32.6]}
32. d7 {[%clk 0:01:38.6]} 32... Qxe5 {[%clk 0:00:31.3]} 33. d8=Q+ {[%clk
0:01:38.2]} 33... Kg7 {[%clk 0:00:31.9]} 34. Nh4 {[%clk 0:01:05.5]} 34... Re1
{[%clk 0:00:20.6]} 35. Qd4 {[%clk 0:01:02.5]} 35... Qxd4+ {[%clk 0:00:17.7]} 36.
Rxd4 {[%clk 0:01:03]} 36... Rc1 {[%clk 0:00:17.3]} 37. c4 {[%clk 0:00:59.2]}
37... Ra1 {[%clk 0:00:15.3]} 38. c5 {[%clk 0:00:55]} 38... Rc1 {[%clk
0:00:14.6]} 39. Rd5 {[%clk 0:00:41.4]} 39... Rc4 {[%clk 0:00:13.7]} 40. Nf5+
{[%clk 0:00:41.4]} 40... Kf6 {[%clk 0:00:13]} 41. Nd6 {[%clk 0:00:42.1]} 41...
Rxa4 {[%clk 0:00:12.3]} 42. Nxb7 {[%clk 0:00:42.5]} 42... Ke6 {[%clk 0:00:11.9]}
43. Rd6+ {[%clk 0:00:42.4]} 43... Ke7 {[%clk 0:00:12]} 44. c6 {[%clk 0:00:41.8]}
44... Rc4 {[%clk 0:00:11.3]} 45. Rd7+ {[%clk 0:00:41.2]} 45... Ke6 {[%clk
0:00:10.2]} 46. Rd6+ {[%clk 0:00:39.7]} 46... Ke7 {[%clk 0:00:10.3]} 47. Rh6
{[%clk 0:00:38.4]} 47... a5 {[%clk 0:00:06.3]} 48. Nxa5 {[%clk 0:00:37.2]} 48...
Rc3 {[%clk 0:00:05.4]} 49. Rxh7 {[%clk 0:00:26.1]} 49... Rc5 {[%clk 0:00:04.5]}
50. Rh8 {[%clk 0:00:26.2]} 50... Kd6 {[%clk 0:00:01.1]} 51. Nb7+ {[%clk
0:00:23.4]} 51... Kxc6 {[%clk 0:00:01.3]} 52. Nxc5 {[%clk 0:00:24.3]} 1-0

[Event "*** SCC Grand Prix: Titled Tuesday Blitz"]
[Site "Chess.com"]
[Date "2020.07.07"]
[Round "3"]
[White "HouseOfDurin"]
[Black "diablanni"]
[Result "0-1"]
[WhiteElo "2031"]
[BlackElo "2299"]
[TimeControl "180+1"]
[EndTime "10:29:38 PDT"]
[Termination "diablanni won by checkmate"]

1. d4 {[%clk 0:03:00.9]} 1... Nf6 {[%clk 0:02:59.5]} 2. Bg5 {[%clk 0:03:01.3]}
2... Ne4 {[%clk 0:02:57.8]} 3. h4 {[%clk 0:03:01.1]} 3... d5 {[%clk 0:02:40.9]}
4. Nd2 {[%clk 0:03:00.4]} 4... Nxd2 {[%clk 0:02:19]} 5. Qxd2 {[%clk 0:03:01.3]}
5... Bf5 {[%clk 0:02:16.9]} 6. e3 {[%clk 0:03:00.7]} 6... h6 {[%clk 0:02:13.8]}
7. Bf4 {[%clk 0:02:59.4]} 7... e6 {[%clk 0:02:13.1]} 8. Bd3 {[%clk 0:02:46.4]}
8... Bxd3 {[%clk 0:02:12.2]} 9. Qxd3 {[%clk 0:02:47.3]} 9... Bd6 {[%clk
0:02:07.3]} 10. Qb5+ {[%clk 0:02:27.9]} 10... Nd7 {[%clk 0:02:01.9]} 11. Bxd6
{[%clk 0:02:27.1]} 11... cxd6 {[%clk 0:02:01.7]} 12. Qxb7 {[%clk 0:02:26.4]}
12... O-O {[%clk 0:01:55.4]} 13. Qa6 {[%clk 0:02:00.9]} 13... Rb8 {[%clk
0:01:43]} 14. b3 {[%clk 0:01:59.4]} 14... Qc7 {[%clk 0:01:38.2]} 15. Qd3 {[%clk
0:01:50.2]} 15... Rfc8 {[%clk 0:01:35.4]} 16. Rc1 {[%clk 0:01:29.8]} 16... Qa5+
{[%clk 0:01:33.3]} 17. Qd2 {[%clk 0:01:22]} 17... Qxa2 {[%clk 0:01:32]} 18. Ne2
{[%clk 0:01:13.6]} 18... Nf6 {[%clk 0:01:31.5]} 19. f3 {[%clk 0:01:12.3]} 19...
Rc7 {[%clk 0:01:08.7]} 20. Nc3 {[%clk 0:00:50]} 20... Qa6 {[%clk 0:00:50.5]} 21.
Na4 {[%clk 0:00:13.3]} 21... e5 {[%clk 0:00:35.4]} 22. Kf2 {[%clk 0:00:10.4]}
22... Qc8 {[%clk 0:00:27.5]} 23. Rhd1 {[%clk 0:00:07.7]} 23... Qf5 {[%clk
0:00:25.2]} 24. Qd3 {[%clk 0:00:06.2]} 24... e4 {[%clk 0:00:22.6]} 25. Qe2
{[%clk 0:00:04.5]} 25... exf3 {[%clk 0:00:21.4]} 26. Qxf3 {[%clk 0:00:04.9]}
26... Rxc2+ {[%clk 0:00:20.4]} 27. Rxc2 {[%clk 0:00:03.3]} 27... Qxc2+ {[%clk
0:00:20.2]} 28. Kg1 {[%clk 0:00:04.2]} 28... Qxb3 {[%clk 0:00:18.9]} 29. Qe2
{[%clk 0:00:03]} 29... Qxa4 {[%clk 0:00:18.1]} 30. Rf1 {[%clk 0:00:01.8]} 30...
Ne4 {[%clk 0:00:15.5]} 31. g4 {[%clk 0:00:02.5]} 31... Qd7 {[%clk 0:00:13.4]}
32. Qf3 {[%clk 0:00:02.7]} 32... Rb2 {[%clk 0:00:12.7]} 33. Qf5 {[%clk
0:00:02.7]} 33... Qxf5 {[%clk 0:00:12.1]} 34. Rxf5 {[%clk 0:00:03.6]} 34... Rb5
{[%clk 0:00:10.5]} 35. g5 {[%clk 0:00:02.3]} 35... hxg5 {[%clk 0:00:09.9]} 36.
hxg5 {[%clk 0:00:03.2]} 36... a5 {[%clk 0:00:09.9]} 37. g6 {[%clk 0:00:02.7]}
37... fxg6 {[%clk 0:00:09.7]} 38. Rf3 {[%clk 0:00:03.1]} 38... a4 {[%clk
0:00:09.5]} 39. Kh2 {[%clk 0:00:03.7]} 39... a3 {[%clk 0:00:09.4]} 40. Rf1
{[%clk 0:00:04.6]} 40... Rb2+ {[%clk 0:00:08.5]} 41. Kh3 {[%clk 0:00:04]} 41...
Rb3 {[%clk 0:00:07.1]} 42. Ra1 {[%clk 0:00:04.9]} 42... Rxe3+ {[%clk 0:00:06.8]}
43. Kg4 {[%clk 0:00:05.5]} 43... Kf7 {[%clk 0:00:05.7]} 44. Kf4 {[%clk
0:00:05.6]} 44... Rb3 {[%clk 0:00:05.2]} 45. Ra2 {[%clk 0:00:05.3]} 45... g5+
{[%clk 0:00:04.1]} 46. Kg4 {[%clk 0:00:05.6]} 46... Kg6 {[%clk 0:00:04.1]} 47.
Rf2 {[%clk 0:00:05.7]} 47... Rg3# {[%clk 0:00:04]} 0-1

[Event "*** SCC Grand Prix: Titled Tuesday Blitz"]
[Site "Chess.com"]
[Date "2020.07.07"]
[Round "3"]
[White "ChronicUnhappiness"]
[Black "Reader777"]
[Result "0-1"]
[WhiteElo "2423"]
[BlackElo "2671"]
[TimeControl "180+1"]
[EndTime "10:29:41 PDT"]
[Termination "Reader777 won on time"]

1. c4 {[%clk 0:03:00.9]} 1... Nf6 {[%clk 0:02:56.7]} 2. Nf3 {[%clk 0:02:59.4]}
2... e6 {[%clk 0:02:54.7]} 3. Nc3 {[%clk 0:02:55.2]} 3... b6 {[%clk 0:02:53.1]}
4. d4 {[%clk 0:02:54.6]} 4... Bb7 {[%clk 0:02:52.3]} 5. e3 {[%clk 0:02:54.4]}
5... Bb4 {[%clk 0:02:49.7]} 6. Bd2 {[%clk 0:02:54.6]} 6... O-O {[%clk
0:02:48.5]} 7. Bd3 {[%clk 0:02:54.7]} 7... d6 {[%clk 0:02:46.7]} 8. O-O {[%clk
0:02:54.6]} 8... Nbd7 {[%clk 0:02:44.6]} 9. a3 {[%clk 0:02:51.3]} 9... Bxc3
{[%clk 0:02:43.7]} 10. Bxc3 {[%clk 0:02:52.2]} 10... Ne4 {[%clk 0:02:41.3]} 11.
Rc1 {[%clk 0:02:50.6]} 11... Qe7 {[%clk 0:02:35.4]} 12. Nd2 {[%clk 0:02:48.7]}
12... Nxc3 {[%clk 0:02:32.2]} 13. Rxc3 {[%clk 0:02:49.6]} 13... e5 {[%clk
0:02:32]} 14. d5 {[%clk 0:02:49.9]} 14... f5 {[%clk 0:02:28.4]} 15. b4 {[%clk
0:02:41]} 15... a5 {[%clk 0:02:27.3]} 16. Qc2 {[%clk 0:02:27.5]} 16... g6 {[%clk
0:02:21.1]} 17. Nb3 {[%clk 0:02:22.8]} 17... axb4 {[%clk 0:02:16.2]} 18. axb4
{[%clk 0:02:22.1]} 18... Ra3 {[%clk 0:01:54.2]} 19. Ra1 {[%clk 0:02:20.5]} 19...
Rxa1+ {[%clk 0:01:51.5]} 20. Nxa1 {[%clk 0:02:20]} 20... c6 {[%clk 0:01:50.6]}
21. dxc6 {[%clk 0:01:51.3]} 21... Bxc6 {[%clk 0:01:51.5]} 22. Nb3 {[%clk
0:01:51.4]} 22... Qg5 {[%clk 0:01:46.3]} 23. Bf1 {[%clk 0:01:49.3]} 23... f4
{[%clk 0:01:28.2]} 24. e4 {[%clk 0:01:22.5]} 24... f3 {[%clk 0:01:23.8]} 25. g3
{[%clk 0:01:22.6]} 25... Nf6 {[%clk 0:01:17.9]} 26. Nd2 {[%clk 0:01:21.4]} 26...
Qh5 {[%clk 0:00:54.1]} 27. Rxf3 {[%clk 0:01:15.5]} 27... Bxe4 {[%clk 0:00:50.4]}
28. Nxe4 {[%clk 0:01:01.6]} 28... Qxf3 {[%clk 0:00:49.9]} 29. Nxd6 {[%clk
0:01:01.8]} 29... Ng4 {[%clk 0:00:46.7]} 30. Ne4 {[%clk 0:00:59.8]} 30... Ne3
{[%clk 0:00:43.4]} 31. Qd3 {[%clk 0:00:48.7]} 31... Nxf1 {[%clk 0:00:39]} 32.
Qd5+ {[%clk 0:00:42.9]} 32... Qf7 {[%clk 0:00:31.2]} 33. Kxf1 {[%clk 0:00:42.9]}
33... Qxd5 {[%clk 0:00:30.2]} 34. cxd5 {[%clk 0:00:43.8]} 34... Rd8 {[%clk
0:00:30.3]} 35. d6 {[%clk 0:00:43.1]} 35... Kf7 {[%clk 0:00:30.3]} 36. Ke2
{[%clk 0:00:43.5]} 36... Ke6 {[%clk 0:00:30.4]} 37. Kd3 {[%clk 0:00:36]} 37...
Kd5 {[%clk 0:00:30]} 38. h4 {[%clk 0:00:28.5]} 38... Ra8 {[%clk 0:00:24.8]} 39.
Nf6+ {[%clk 0:00:13.6]} 39... Kxd6 {[%clk 0:00:24.2]} 40. Nxh7 {[%clk
0:00:14.5]} 40... Ra3+ {[%clk 0:00:21.5]} 41. Ke4 {[%clk 0:00:14.5]} 41... Rb3
{[%clk 0:00:20.5]} 42. Nf8 {[%clk 0:00:11.3]} 42... Rxb4+ {[%clk 0:00:20.4]} 43.
Ke3 {[%clk 0:00:11.6]} 43... Ke7 {[%clk 0:00:17.2]} 44. Nxg6+ {[%clk 0:00:11.2]}
44... Kf6 {[%clk 0:00:17.8]} 45. h5 {[%clk 0:00:10.8]} 45... Rd4 {[%clk
0:00:15.8]} 46. f3 {[%clk 0:00:09.3]} 46... b5 {[%clk 0:00:15.4]} 47. g4 {[%clk
0:00:01.5]} 47... b4 {[%clk 0:00:14.4]} 0-1

[Event "*** SCC Grand Prix: Titled Tuesday Blitz"]
[Site "Chess.com"]
[Date "2020.07.07"]
[Round "3"]
[White "Karina_Ivanova"]
[Black "ChessicallyInclined"]
[Result "0-1"]
[WhiteElo "2218"]
[BlackElo "2494"]
[TimeControl "180+1"]
[EndTime "10:29:42 PDT"]
[Termination "ChessicallyInclined won on time"]

1. d4 {[%clk 0:03:00.9]} 1... Nf6 {[%clk 0:02:59.2]} 2. Nf3 {[%clk 0:03:00.7]}
2... e6 {[%clk 0:02:59.7]} 3. g3 {[%clk 0:03:00.3]} 3... b6 {[%clk 0:02:55.1]}
4. Bg2 {[%clk 0:02:59.7]} 4... Bb7 {[%clk 0:02:55.7]} 5. O-O {[%clk 0:02:58.7]}
5... c5 {[%clk 0:02:55.7]} 6. c4 {[%clk 0:02:56.9]} 6... cxd4 {[%clk 0:02:55.1]}
7. Qxd4 {[%clk 0:02:56.2]} 7... Qc8 {[%clk 0:02:56]} 8. Nc3 {[%clk 0:02:51.7]}
8... Nc6 {[%clk 0:02:55.3]} 9. Qf4 {[%clk 0:02:50.8]} 9... a6 {[%clk 0:02:48.4]}
10. Rd1 {[%clk 0:02:45]} 10... Na5 {[%clk 0:02:44.6]} 11. b3 {[%clk 0:02:37.5]}
11... b5 {[%clk 0:02:42]} 12. Ne5 {[%clk 0:02:17.3]} 12... Bxg2 {[%clk
0:02:39.9]} 13. Kxg2 {[%clk 0:02:16.2]} 13... bxc4 {[%clk 0:02:40]} 14. Nxc4
{[%clk 0:02:10.8]} 14... Nxc4 {[%clk 0:02:23.4]} 15. bxc4 {[%clk 0:02:03.2]}
15... Qc6+ {[%clk 0:02:22.1]} 16. Qf3 {[%clk 0:01:47.3]} 16... Rc8 {[%clk
0:02:18.8]} 17. Bg5 {[%clk 0:01:41.6]} 17... Qxf3+ {[%clk 0:02:12.5]} 18. Kxf3
{[%clk 0:01:39.9]} 18... Rxc4 {[%clk 0:02:11.7]} 19. Bxf6 {[%clk 0:01:39.7]}
19... gxf6 {[%clk 0:02:10.4]} 20. Rac1 {[%clk 0:01:26.9]} 20... f5 {[%clk
0:01:52.1]} 21. Nb1 {[%clk 0:00:36.9]} 21... Rxc1 {[%clk 0:01:43.9]} 22. Rxc1
{[%clk 0:00:36.3]} 22... Kd8 {[%clk 0:01:43]} 23. Nd2 {[%clk 0:00:29.4]} 23...
Bb4 {[%clk 0:01:33.6]} 24. Nb3 {[%clk 0:00:28.6]} 24... Ke7 {[%clk 0:01:30.5]}
25. Rc7 {[%clk 0:00:24.1]} 25... Rb8 {[%clk 0:01:17.5]} 26. Ra7 {[%clk
0:00:21.8]} 26... Rb6 {[%clk 0:01:06.9]} 27. h4 {[%clk 0:00:19.5]} 27... h5
{[%clk 0:01:01.1]} 28. e3 {[%clk 0:00:18.9]} 28... Bc3 {[%clk 0:00:48.1]} 29.
Kf4 {[%clk 0:00:17]} 29... Bf6 {[%clk 0:00:42.3]} 30. Nc5 {[%clk 0:00:11.2]}
30... Rc6 {[%clk 0:00:34.2]} 31. Nxd7 {[%clk 0:00:09]} 31... Rc4+ {[%clk
0:00:29.4]} 32. Kf3 {[%clk 0:00:09]} 32... Rc3 {[%clk 0:00:24.8]} 33. Nc5+
{[%clk 0:00:07.4]} 33... Kf8 {[%clk 0:00:24.5]} 34. Nxa6 {[%clk 0:00:05.6]}
34... Ra3 {[%clk 0:00:24.6]} 35. Ra8+ {[%clk 0:00:05]} 35... Kg7 {[%clk
0:00:24.7]} 36. Nc7 {[%clk 0:00:05.9]} 36... Rxa8 {[%clk 0:00:17.3]} 37. Nxa8
{[%clk 0:00:05.7]} 37... Bd8 {[%clk 0:00:17.9]} 38. Kf4 {[%clk 0:00:04.5]} 38...
Kf6 {[%clk 0:00:17.8]} 39. e4 {[%clk 0:00:04.7]} 39... e5+ {[%clk 0:00:17]} 40.
Ke3 {[%clk 0:00:04.8]} 40... fxe4 {[%clk 0:00:16.8]} 41. Kxe4 {[%clk 0:00:04.9]}
41... Ke6 {[%clk 0:00:17.4]} 42. a4 {[%clk 0:00:04.8]} 42... f5+ {[%clk
0:00:17.7]} 43. Kd3 {[%clk 0:00:04.7]} 43... Kd5 {[%clk 0:00:18]} 44. Kc3 {[%clk
0:00:04.2]} 44... Ba5+ {[%clk 0:00:17.5]} 45. Kb3 {[%clk 0:00:04.1]} 45... Kd4
{[%clk 0:00:15.6]} 46. f3 {[%clk 0:00:03.2]} 46... e4 {[%clk 0:00:15.1]} 47.
fxe4 {[%clk 0:00:02.9]} 47... fxe4 {[%clk 0:00:16]} 48. Kc2 {[%clk 0:00:03.8]}
48... e3 {[%clk 0:00:15.4]} 49. Kd1 {[%clk 0:00:03.9]} 49... Kd3 {[%clk
0:00:16]} 50. g4 {[%clk 0:00:03.7]} 50... e2+ {[%clk 0:00:16.9]} 51. Kc1 {[%clk
0:00:03.6]} 51... e1=Q+ {[%clk 0:00:17.8]} 0-1

[Event "*** SCC Grand Prix: Titled Tuesday Blitz"]
[Site "Chess.com"]
[Date "2020.07.07"]
[Round "3"]
[White "SCIM"]
[Black "Gabrielian_Artur"]
[Result "1-0"]
[WhiteElo "2560"]
[BlackElo "2758"]
[TimeControl "180+1"]
[EndTime "10:29:44 PDT"]
[Termination "SCIM won by checkmate"]

1. d4 {[%clk 0:03:00.9]} 1... Nf6 {[%clk 0:02:59.6]} 2. c4 {[%clk 0:03:00.8]}
2... c5 {[%clk 0:02:59.4]} 3. d5 {[%clk 0:03:00]} 3... e6 {[%clk 0:02:59.2]} 4.
Nc3 {[%clk 0:02:59.4]} 4... exd5 {[%clk 0:02:59.6]} 5. cxd5 {[%clk 0:03:00.3]}
5... d6 {[%clk 0:02:59.8]} 6. e4 {[%clk 0:03:00.5]} 6... g6 {[%clk 0:02:59.9]}
7. Nge2 {[%clk 0:03:00.9]} 7... h5 {[%clk 0:02:57.6]} 8. Bg5 {[%clk 0:02:54.4]}
8... Nbd7 {[%clk 0:02:51.6]} 9. Qd2 {[%clk 0:02:45.3]} 9... a6 {[%clk 0:02:47]}
10. a4 {[%clk 0:02:44.2]} 10... Bg7 {[%clk 0:02:45.7]} 11. h4 {[%clk 0:02:30.1]}
11... Rb8 {[%clk 0:02:39.6]} 12. Ng3 {[%clk 0:02:21.5]} 12... Qc7 {[%clk
0:02:29.8]} 13. Be2 {[%clk 0:02:17.5]} 13... c4 {[%clk 0:02:23.4]} 14. a5 {[%clk
0:02:11.3]} 14... O-O {[%clk 0:02:17.2]} 15. O-O {[%clk 0:02:10]} 15... Re8
{[%clk 0:02:04.6]} 16. Bh6 {[%clk 0:01:58.1]} 16... Bh8 {[%clk 0:01:45.9]} 17.
Rfc1 {[%clk 0:01:41.2]} 17... Ne5 {[%clk 0:01:12.7]} 18. Be3 {[%clk 0:01:29.5]}
18... Nfg4 {[%clk 0:01:08.4]} 19. Bb6 {[%clk 0:01:22.1]} 19... Qe7 {[%clk
0:01:08.1]} 20. Nd1 {[%clk 0:01:00.2]} 20... Qxh4 {[%clk 0:01:05.2]} 21. Nf1
{[%clk 0:00:59]} 21... Bd7 {[%clk 0:00:51.3]} 22. f3 {[%clk 0:00:53.6]} 22...
Bb5 {[%clk 0:00:32.7]} 23. fxg4 {[%clk 0:00:43.5]} 23... Nxg4 {[%clk 0:00:32.9]}
24. Bxg4 {[%clk 0:00:39.7]} 24... Qxg4 {[%clk 0:00:29.9]} 25. Nf2 {[%clk
0:00:36.6]} 25... Qh4 {[%clk 0:00:27.6]} 26. Bd4 {[%clk 0:00:32.9]} 26... Be5
{[%clk 0:00:17.9]} 27. Bxe5 {[%clk 0:00:30.5]} 27... Rxe5 {[%clk 0:00:18.8]} 28.
Ra3 {[%clk 0:00:29.7]} 28... Rbe8 {[%clk 0:00:17.9]} 29. Rf3 {[%clk 0:00:27.4]}
29... Qe7 {[%clk 0:00:14.2]} 30. Ne3 {[%clk 0:00:22.8]} 30... Qc7 {[%clk
0:00:13.5]} 31. Nc2 {[%clk 0:00:20.6]} 31... Qe7 {[%clk 0:00:12]} 32. Nd4 {[%clk
0:00:20.3]} 32... Kg7 {[%clk 0:00:11.7]} 33. Nxb5 {[%clk 0:00:19.6]} 33... axb5
{[%clk 0:00:11.8]} 34. Rf1 {[%clk 0:00:20.2]} 34... f6 {[%clk 0:00:11.6]} 35.
Qd4 {[%clk 0:00:19.5]} 35... Kh7 {[%clk 0:00:10.6]} 36. Qb6 {[%clk 0:00:17.8]}
36... Rf8 {[%clk 0:00:09.5]} 37. Qxb5 {[%clk 0:00:17.3]} 37... f5 {[%clk
0:00:09.7]} 38. exf5 {[%clk 0:00:14.8]} 38... Rfxf5 {[%clk 0:00:08.3]} 39. Rxf5
{[%clk 0:00:14.7]} 39... Rxf5 {[%clk 0:00:08.5]} 40. Qxc4 {[%clk 0:00:15]} 40...
Qf7 {[%clk 0:00:06.8]} 41. b4 {[%clk 0:00:13.6]} 41... Kh6 {[%clk 0:00:05]} 42.
Ne4 {[%clk 0:00:13.2]} 42... Rxf1+ {[%clk 0:00:04.4]} 43. Qxf1 {[%clk
0:00:14.1]} 43... Qe7 {[%clk 0:00:03.7]} 44. Qf4+ {[%clk 0:00:13.7]} 44... Kg7
{[%clk 0:00:04.2]} 45. b5 {[%clk 0:00:11.9]} 45... Qc7 {[%clk 0:00:03.4]} 46.
Qf6+ {[%clk 0:00:10.9]} 46... Kh7 {[%clk 0:00:02.8]} 47. Ng5+ {[%clk 0:00:10.2]}
47... Kh6 {[%clk 0:00:03.4]} 48. Nf7+ {[%clk 0:00:09]} 48... Kh7 {[%clk
0:00:03.8]} 49. Qh8# {[%clk 0:00:09]} 1-0